fUSD/lending_fUSD_20250806
["ID","MTS","AMOUNT","RATE_DAILY","PERIOD"]
[377591314,1754448758580,-1943.34,0.0003726,14]
[377591315,1754448758590,-771.1,0.0003726,14]
[377591316,1754448758599,-738.49,0.0003726,14]
[377591317,1754448758608,-1101.66,0.0003726,14]
[377591318,1754448758618,-2119.77,0.0003726,14]
[377591319,1754448758627,-400.0,0.0003726,14]
[377591320,1754448758637,-400.0,0.0003726,14]
[377591321,1754448758646,-400.0,0.0003726,14]
[377591322,1754448758655,-400.0,0.0003726,14]
[377591323,1754448758665,-2486.07,0.0003726,14]
[377591324,1754448758674,-400.0,0.0003726,14]
[377591325,1754448758683,-400.0,0.0003726,14]
[377591326,1754448758693,-400.0,0.0003726,14]
[377591327,1754448758702,-400.0,0.0003726,14]
[377591328,1754448758711,-825.89,0.0003726,14]
[377591329,1754448758721,-1301.09,0.0003726,14]
[377591330,1754448758733,-400.0,0.0003726,14]
[377591331,1754448758742,-400.0,0.0003726,14]
[377591332,1754448758751,-400.0,0.0003726,14]
[377591333,1754448758760,-400.0,0.0003726,14]
[377591334,1754448758770,-400.0,0.0003726,14]
[377591335,1754448758780,-681.33,0.0003726,14]
[377591336,1754448758792,-424.16,0.0003726,14]
[377591337,1754448758802,-1940.75,0.0003726,14]
[377591338,1754448758812,-2332.46,0.0003726,14]
[377591339,1754448758822,-400.0,0.0003726,14]
[377591340,1754448758834,-400.0,0.0003726,14]
[377591341,1754448758843,-400.0,0.0003726,14]
[377591342,1754448758853,-2008.42,0.0003726,14]
[377591343,1754448758862,-1594.04,0.0003726,14]
[377591344,1754448758872,-400.0,0.0003726,14]
[377591345,1754448758885,-1556.67,0.0003726,14]
[377591346,1754448758895,-400.0,0.0003726,14]
[377591347,1754448758905,-400.0,0.0003726,14]
[377591348,1754448758917,-803.41,0.0003726,14]
[377591349,1754448758927,-1049.45,0.0003726,14]
[377591350,1754448758936,-2287.11,0.0003726,14]
[377591351,1754448758946,-2094.9,0.0003726,14]
[377591352,1754448758955,-3089.8,0.0003726,14]
[377591353,1754448758967,-400.0,0.0003726,14]
[377591354,1754448758978,-2284.3,0.0003726,14]
[377591355,1754448758988,-1760.6,0.0003726,14]
[377591356,1754448758998,-904.68,0.0003726,14]
[377591357,1754448759009,-590.2,0.0003726,14]
[377591358,1754448759018,-524.39,0.0003726,14]
[377591359,1754448759027,-400.0,0.0003726,14]
[377591360,1754448759037,-538.64,0.0003726,14]
[377591361,1754448759046,-400.0,0.0003726,14]
[377591362,1754448759056,-473.05,0.0003726,14]
[377591363,1754448759066,-477.4,0.0003726,14]
[377591364,1754448759075,-1562.45,0.0003726,14]
[377591365,1754448759085,-992.23,0.0003726,14]
[377591366,1754448759094,-681.47,0.0003726,14]
[377591367,1754448759103,-1343.91,0.0003726,14]
[377591368,1754448759112,-1123.2,0.0003726,14]
[377591369,1754448759121,-400.0,0.0003726,14]
[377591370,1754448759130,-402.35,0.0003726,14]
[377591371,1754448759140,-400.0,0.0003726,14]
[377591372,1754448759150,-400.0,0.0003726,14]
[377591373,1754448759159,-400.0,0.0003726,14]
[377591374,1754448759168,-659.8,0.0003726,14]
[377591375,1754448759179,-258.7138176,0.0003726,14]
[377591376,1754448759190,-905.29,0.0003726,14]
[377591377,1754448759201,-400.0,0.0003726,14]
[377591378,1754448759211,-400.0,0.0003726,14]
[377591379,1754448759220,-833.81,0.0003726,14]
[377591380,1754448759231,-400.0,0.0003726,14]
[377591381,1754448759241,-340.72635811,0.0003726,14]
[377591382,1754448759250,-400.0,0.0003726,14]
[377591383,1754448759261,-400.0,0.0003726,14]
[377591384,1754448759271,-1620.39,0.0003726,14]
[377591385,1754448759282,-1647.26,0.0003726,14]
[377591386,1754448759292,-214.29327083,0.0003726,14]
[377591387,1754448759302,-2673.63,0.0003726,14]
[377591388,1754448759312,-423.93,0.0003726,14]
[377591389,1754448759321,-400.0,0.0003726,14]
[377591390,1754448759330,-400.0,0.0003726,14]
[377591391,1754448759338,-3032.43,0.0003726,14]
[377591392,1754448759348,-2718.79,0.0003726,14]
[377591393,1754448759357,-400.0,0.0003726,14]
[377591394,1754448759366,-652.53,0.0003726,14]
[377591395,1754448759375,-537.68,0.0003726,14]
[377591396,1754448759384,-400.0,0.0003726,14]
[377591397,1754448759393,-1352.85,0.0003726,14]
[377591398,1754448759402,-591.66,0.0003726,14]
[377591399,1754448759411,-1194.25,0.0003726,14]
[377591400,1754448759420,-1325.26,0.0003726,14]
[377591401,1754448759429,-687.17,0.0003726,14]
[377591402,1754448759438,-400.0,0.0003726,14]
[377591403,1754448759447,-400.0,0.0003726,14]
[377591404,1754448759456,-400.0,0.0003726,14]
[377591405,1754448759465,-2118.84,0.0003726,14]
[377591406,1754448759474,-3219.58,0.0003726,14]
[377591407,1754448759483,-2996.94,0.0003726,14]
[377591408,1754448759492,-1193.92,0.0003726,14]
[377591409,1754448759501,-400.0,0.0003726,14]
[377591410,1754448759513,-400.0,0.0003726,14]
[377591411,1754448759522,-400.0,0.0003726,14]
[377591412,1754448759532,-400.0,0.0003726,14]
[377591413,1754448759541,-400.0,0.0003726,14]
[377591414,1754448759553,-825.46,0.0003726,14]
[377591415,1754448759563,-400.0,0.0003726,14]
[377591416,1754448759573,-400.0,0.0003726,14]
[377591417,1754448759583,-509.96,0.0003726,14]
[377591418,1754448759936,-2113.04,0.0003726,14]
[377591419,1754448759953,-1273.79,0.0003726,14]
[377591420,1754448759963,-400.0,0.0003726,14]
[377591421,1754448759973,-2100.37,0.0003726,14]
[377591422,1754448759982,-400.0,0.0003726,14]
[377591423,1754448759992,-445.22,0.0003726,14]
[377591424,1754448760002,-400.0,0.0003726,14]
[377591425,1754448760011,-2053.25,0.0003726,14]
[377591426,1754448760020,-1931.44,0.0003726,14]
[377591427,1754448760029,-400.0,0.0003726,14]
[377591428,1754448760039,-400.0,0.0003726,14]
[377591429,1754448760048,-590.55,0.0003726,14]
[377591430,1754448760057,-1620.16,0.0003726,14]
[377591431,1754448760066,-400.0,0.0003726,14]
[377591432,1754448760076,-457.71,0.0003726,14]
[377591433,1754448760086,-2044.76,0.0003726,14]
[377591434,1754448760096,-400.0,0.0003726,14]
[377591435,1754448760106,-400.0,0.0003726,14]
[377591436,1754448760115,-2493.6,0.0003726,14]
[377591437,1754448760124,-1325.52,0.0003726,14]
[377591438,1754448760133,-3399.61,0.0003726,14]
[377591439,1754448760143,-400.0,0.0003726,14]
[377591440,1754448760152,-400.0,0.0003726,14]
[377591441,1754448760162,-400.0,0.0003726,14]
[377591442,1754448760172,-486.69,0.0003726,14]
[377591443,1754448760181,-1026.17,0.0003726,14]
[377591444,1754448760190,-400.0,0.0003726,14]
[377591445,1754448760199,-723.29,0.0003726,14]
[377591446,1754448760208,-651.88,0.0003726,14]
[377591447,1754448760217,-400.0,0.0003726,14]
[377591448,1754448760226,-903.69,0.0003726,14]
[377591449,1754448760235,-1532.92,0.0003726,14]
[377591450,1754448760244,-400.0,0.0003726,14]
[377591451,1754448760254,-672.26,0.0003726,14]
[377591452,1754448760277,-400.0,0.0003726,14]
[377591453,1754448760286,-400.0,0.0003726,14]
[377591454,1754448760295,-1382.08,0.0003726,14]
[377591455,1754448760304,-400.0,0.0003726,14]
[377591456,1754448760314,-2614.37,0.0003726,14]
[377591457,1754448760323,-400.0,0.0003726,14]
[377591458,1754448760332,-1985.89,0.0003726,14]
[377591459,1754448760342,-283.67445802,0.0003726,14]
[377591460,1754448760351,-677.89,0.0003726,14]
[377591461,1754448760360,-1383.95,0.0003726,14]
[377591462,1754448760369,-400.0,0.0003726,14]
[377591463,1754448760379,-400.0,0.0003726,14]
[377591464,1754448760388,-400.0,0.0003726,14]
[377591465,1754448760397,-832.0,0.0003726,14]
[377591466,1754448760406,-579.93,0.0003726,14]
[377591467,1754448760415,-1028.28,0.0003726,14]
[377591468,1754448760424,-400.0,0.0003726,14]
[377591469,1754448760433,-717.13,0.0003726,14]
[377591470,1754448760442,-400.0,0.0003726,14]
[377591471,1754448760451,-400.0,0.0003726,14]
[377591472,1754448760460,-2778.5,0.0003726,14]
[377591473,1754448760469,-400.0,0.0003726,14]
[377591474,1754448760478,-400.0,0.0003726,14]
[377591475,1754448760487,-400.0,0.0003726,14]
[377591476,1754448760496,-2015.29,0.0003726,14]
[377591477,1754448760505,-3708.79,0.0003726,14]
[377591478,1754448760514,-752.93,0.0003726,14]
[377591479,1754448760522,-400.0,0.0003726,14]
[377591480,1754448760532,-400.0,0.0003726,14]
[377591481,1754448760541,-735.15,0.0003726,14]
[377591482,1754448760551,-2553.57,0.0003726,14]
[377591483,1754448760560,-400.0,0.0003726,14]
[377591484,1754448760569,-1607.76,0.0003726,14]
[377591485,1754448760579,-400.0,0.0003726,14]
[377591486,1754448760589,-400.0,0.0003726,14]
[377591487,1754448760598,-1838.27,0.0003726,14]
[377591488,1754448760608,-757.96,0.0003726,14]
[377591489,1754448760617,-2459.31,0.0003726,14]
[377591490,1754448760626,-2248.73,0.0003726,14]
[377591491,1754448760635,-400.0,0.0003726,14]
[377591492,1754448760644,-865.96,0.0003726,14]
[377591493,1754448760653,-1094.22,0.0003726,14]
[377591494,1754448760662,-842.75,0.0003726,14]
[377591495,1754448760671,-1141.46,0.0003726,14]
[377591496,1754448760680,-2023.14,0.0003726,14]
[377591497,1754448760689,-400.0,0.0003726,14]
[377591498,1754448760698,-1074.3,0.0003726,14]
[377591499,1754448760707,-1520.4,0.0003726,14]
[377591500,1754448760716,-414.57,0.0003726,14]
[377591501,1754448760725,-1903.84,0.0003726,14]
[377591502,1754448760734,-400.0,0.0003726,14]
[377591503,1754448760744,-400.0,0.0003726,14]
[377591504,1754448760752,-715.12,0.0003726,14]
[377591505,1754448760762,-1769.99,0.0003726,14]
[377591506,1754448760771,-3013.96,0.0003726,14]
[377591507,1754448760780,-450.72,0.0003726,14]
[377591508,1754448760789,-1189.15,0.0003726,14]
[377591509,1754448760799,-400.0,0.0003726,14]
[377591510,1754448760808,-1853.29,0.0003726,14]
[377591511,1754448760818,-400.0,0.0003726,14]
[377591512,1754448760827,-2171.13,0.0003726,14]
[377591513,1754448760837,-492.36,0.0003726,14]
[377591514,1754448760846,-1432.94,0.0003726,14]
[377591515,1754448760856,-2772.54,0.0003726,14]
[377591516,1754448760865,-400.0,0.0003726,14]
[377591517,1754448760877,-660.15,0.0003726,14]
[377591518,1754448760887,-687.86,0.0003726,14]
[377591519,1754448760897,-1512.02,0.0003726,14]
[377591520,1754448760907,-1752.0,0.0003726,14]
[377591521,1754448760918,-2123.08,0.0003726,14]
[377591522,1754448760927,-400.0,0.0003726,14]
[377591523,1754448760937,-1827.77,0.0003726,14]
[377591524,1754448760946,-400.0,0.0003726,14]
[377591525,1754448760957,-400.0,0.0003726,14]
[377591526,1754448760967,-710.17,0.0003726,14]
[377591527,1754448760976,-3809.64,0.0003726,14]
[377591528,1754448760985,-400.0,0.0003726,14]
[377591529,1754448760995,-400.0,0.0003726,14]
[377591530,1754448761004,-541.8,0.0003726,14]
[377591531,1754448761014,-2320.18,0.0003726,14]
[377591532,1754448761023,-400.0,0.0003726,14]
[377591533,1754448761033,-1290.75,0.0003726,14]
[377591534,1754448761043,-2988.22,0.0003726,14]
[377591535,1754448761054,-650.32,0.0003726,14]
[377591536,1754448761064,-432.19,0.0003726,14]
[377591537,1754448761077,-400.0,0.0003726,14]
[377591538,1754448761087,-2067.35,0.0003726,14]
[377591539,1754448761096,-786.46,0.0003726,14]
[377591540,1754448761106,-1893.56,0.0003726,14]
[377591541,1754448761117,-400.0,0.0003726,14]
[377591542,1754448761128,-2121.86,0.0003726,14]
[377591543,1754448761139,-436.89,0.0003726,14]
[377591544,1754448761148,-400.0,0.0003726,14]
[377591545,1754448761158,-1091.29,0.0003726,14]
[377591546,1754448761167,-2572.93,0.0003726,14]
[377591547,1754448761178,-403.94,0.0003726,14]
[377591548,1754448761188,-400.0,0.0003726,14]
[377591549,1754448761198,-456.45,0.0003726,14]
[377591550,1754448761209,-1090.58,0.0003726,14]
[377591551,1754448761220,-2572.33,0.0003726,14]
[377591552,1754448761232,-1310.5,0.0003726,14]
[377591553,1754448761244,-1680.95,0.0003726,14]
[377591554,1754448761256,-569.78,0.0003726,14]
[377591555,1754448761268,-541.54,0.0003726,14]
[377591556,1754448761278,-615.57,0.0003726,14]
[377591557,1754448761290,-1082.92,0.0003726,14]
[377591558,1754448761306,-1272.84,0.0003726,14]
[377591559,1754448761322,-400.0,0.0003726,14]
[377591560,1754448761332,-1882.26,0.0003726,14]
[377591561,1754448761341,-1821.93,0.0003726,14]
[377591562,1754448761352,-2393.94,0.0003726,14]
[377591563,1754448761363,-400.0,0.0003726,14]
[377591564,1754448761373,-819.87,0.0003726,14]
[377591565,1754448761383,-400.0,0.0003726,14]
[377591566,1754448761392,-472.45,0.0003726,14]
[377591567,1754448761401,-1723.53,0.0003726,14]
[377591568,1754448761412,-400.0,0.0003726,14]
[377591569,1754448761423,-400.0,0.0003726,14]
[377591570,1754448761433,-571.97,0.0003726,14]
[377591571,1754448761443,-400.0,0.0003726,14]
[377591572,1754448761452,-400.0,0.0003726,14]
[377591573,1754448761463,-2205.0,0.0003726,14]
[377591574,1754448761474,-2459.29,0.0003726,14]
[377591575,1754448761485,-1328.89,0.0003726,14]
[377591576,1754448761495,-1450.07,0.0003726,14]
[377591577,1754448761504,-498.72,0.0003726,14]
[377591578,1754448761513,-400.0,0.0003726,14]
[377591579,1754448761523,-400.0,0.0003726,14]
[377591580,1754448761532,-400.0,0.0003726,14]
[377591581,1754448761541,-400.0,0.0003726,14]
[377591582,1754448761551,-2050.67,0.0003726,14]
[377591583,1754448761560,-1998.0,0.0003726,14]
[377591584,1754448761570,-2177.61,0.0003726,14]
[377591585,1754448761580,-253.32663342,0.0003726,14]
[377591586,1754448761589,-2851.05,0.0003726,14]
[377591587,1754448761599,-565.91,0.0003726,14]
[377591588,1754448761610,-2230.94,0.0003726,14]
[377591589,1754448761622,-400.0,0.0003726,14]
[377591590,1754448761634,-1023.05,0.0003726,14]
[377591591,1754448761643,-400.0,0.0003726,14]
[377591592,1754448761655,-1541.91,0.0003726,14]
[377591593,1754448761665,-1743.92,0.0003726,14]
[377591594,1754448761674,-518.06,0.0003726,14]
[377591595,1754448761684,-400.0,0.0003726,14]
[377591596,1754448761695,-1947.18,0.0003726,14]
[377591597,1754448761705,-1840.41,0.0003726,14]
[377591598,1754448761715,-1701.37,0.0003726,14]
[377591599,1754448761725,-3617.37,0.0003726,14]
[377591600,1754448761734,-400.0,0.0003726,14]
[377591601,1754448761743,-1293.69,0.0003726,14]
[377591602,1754448761753,-400.0,0.0003726,14]
[377591603,1754448761762,-400.0,0.0003726,14]
[377591604,1754448761770,-2062.42,0.0003726,14]
[377591605,1754448761779,-1163.86,0.0003726,14]
[377591606,1754448761789,-400.0,0.0003726,14]
[377591607,1754448761798,-1802.74,0.0003726,14]
[377591608,1754448761811,-1704.62,0.0003726,14]
[377591609,1754448761820,-400.0,0.0003726,14]
[377591610,1754448761830,-2082.15,0.0003726,14]
[377591611,1754448761839,-2004.98,0.0003726,14]
[377591612,1754448761849,-578.97,0.0003726,14]
[377591613,1754448761859,-1140.6,0.0003726,14]
[377591614,1754448761868,-2059.67,0.0003726,14]
[377591615,1754448761880,-400.0,0.0003726,14]
[377591616,1754448761889,-400.0,0.0003726,14]
[377591617,1754448761898,-400.0,0.0003726,14]
[377591618,1754448761907,-400.0,0.0003726,14]
[377591619,1754448761917,-400.0,0.0003726,14]
[377591620,1754448761927,-400.0,0.0003726,14]
[377591621,1754448761936,-2008.93,0.0003726,14]
[377591622,1754448761945,-400.0,0.0003726,14]
[377591623,1754448761955,-2421.14,0.0003726,14]
[377591624,1754448761965,-1042.45,0.0003726,14]
[377591625,1754448761974,-1854.33,0.0003726,14]
[377591626,1754448761984,-904.89,0.0003726,14]
[377591627,1754448761993,-400.0,0.0003726,14]
[377591628,1754448762003,-1949.77,0.0003726,14]
[377591629,1754448762013,-717.97,0.0003726,14]
[377591630,1754448762022,-439.26,0.0003726,14]
[377591631,1754448762032,-995.71,0.0003726,14]
[377591632,1754448762042,-944.69,0.0003726,14]
[377591633,1754448762054,-400.0,0.0003726,14]
[377591634,1754448762063,-400.0,0.0003726,14]
[377591635,1754448762072,-1533.65,0.0003726,14]
[377591636,1754448762081,-564.92,0.0003726,14]
[377591637,1754448762090,-400.0,0.0003726,14]
[377591638,1754448762099,-1068.1,0.0003726,14]
[377591639,1754448762108,-334.44062082,0.0003726,14]
[377591640,1754448762117,-1225.03,0.0003726,14]
[377591641,1754448762127,-400.0,0.0003726,14]
[377591642,1754448762137,-400.0,0.0003726,14]
[377591643,1754448762146,-463.8,0.0003726,14]
[377591644,1754448762156,-423.39,0.0003726,14]
[377591645,1754448762165,-5248.2,0.0003726,14]
[377591646,1754448762174,-400.0,0.0003726,14]
[377591647,1754448762183,-400.0,0.0003726,14]
[377591648,1754448762192,-2409.79,0.0003726,14]
[377591649,1754448762201,-1276.5,0.0003726,14]
[377591650,1754448762210,-400.0,0.0003726,14]
[377591651,1754448762220,-400.0,0.0003726,14]
[377591652,1754448762230,-919.64,0.0003726,14]
[377591653,1754448762239,-465.73,0.0003726,14]
[377591654,1754448762248,-1930.39,0.0003726,14]
[377591655,1754448762257,-481.93,0.0003726,14]
[377591656,1754448762267,-680.58,0.0003726,14]
[377591657,1754448762276,-1671.93,0.0003726,14]
[377591658,1754448762285,-2002.8,0.0003726,14]
[377591659,1754448762294,-400.0,0.0003726,14]
[377591660,1754448762303,-1784.3,0.0003726,14]
[377591661,1754448762312,-3610.35,0.0003726,14]
[377591662,1754448762443,-1873.43,0.0003726,14]
[377591663,1754448762452,-1790.5,0.0003726,14]
[377591664,1754448762461,-400.0,0.0003726,14]
[377591665,1754448762471,-400.0,0.0003726,14]
[377591666,1754448762480,-400.0,0.0003726,14]
[377591667,1754448762489,-1409.58,0.0003726,14]
[377591668,1754448762498,-589.06,0.0003726,14]
[377591669,1754448762507,-400.0,0.0003726,14]
[377591670,1754448762517,-400.0,0.0003726,14]
[377591671,1754448762526,-769.03,0.0003726,14]
[377591672,1754448762535,-1264.89,0.0003726,14]
[377591673,1754448762544,-493.42,0.0003726,14]
[377591674,1754448762554,-396.39601933,0.0003726,14]
[377591675,1754448762564,-1966.76,0.0003726,14]
[377591676,1754448762573,-446.21,0.0003726,14]
[377591677,1754448762582,-1081.98,0.0003726,14]
[377591678,1754448762592,-2193.87,0.0003726,14]
[377591679,1754448762600,-974.88,0.0003726,14]
[377591680,1754448762610,-950.01,0.0003726,14]
[377591681,1754448762619,-662.34,0.0003726,14]
[377591682,1754448762628,-400.0,0.0003726,14]
[377591683,1754448762637,-2313.76,0.0003726,14]
[377591684,1754448762646,-861.94,0.0003726,14]
[377591685,1754448762655,-2151.64,0.0003726,14]
[377591686,1754448762665,-433.2,0.0003726,14]
[377591687,1754448762674,-400.0,0.0003726,14]
[377591688,1754448762683,-2093.1,0.0003726,14]
[377591689,1754448762692,-2798.78,0.0003726,14]
[377591690,1754448762701,-400.0,0.0003726,14]
[377591691,1754448762711,-400.0,0.0003726,14]
[377591692,1754448762719,-1160.89,0.0003726,14]
[377591693,1754448762729,-1069.38,0.0003726,14]
[377591694,1754448762737,-825.71,0.0003726,14]
[377591695,1754448762746,-1990.46,0.0003726,14]
[377591696,1754448762756,-400.0,0.0003726,14]
[377591697,1754448762765,-400.0,0.0003726,14]
[377591698,1754448762774,-400.0,0.0003726,14]
[377591699,1754448762784,-2866.67,0.0003726,14]
[377591700,1754448762793,-400.0,0.0003726,14]
[377591701,1754448762803,-552.31,0.0003726,14]
[377591702,1754448762813,-2248.31,0.0003726,14]
[377591703,1754448762823,-400.0,0.0003726,14]
[377591704,1754448762833,-534.6,0.0003726,14]
[377591705,1754448762849,-2830.73,0.0003726,14]
[377591706,1754448762858,-400.0,0.0003726,14]
[377591707,1754448762867,-400.0,0.0003726,14]
[377591708,1754448762879,-400.0,0.0003726,14]
[377591709,1754448762888,-877.07,0.0003726,14]
[377591710,1754448762898,-636.63,0.0003726,14]
[377591711,1754448762907,-1151.11,0.0003726,14]
[377591712,1754448762916,-1232.95,0.0003726,14]
[377591713,1754448762925,-404.16,0.0003726,14]
[377591714,1754448762935,-1463.25,0.0003726,14]
[377591715,1754448762944,-663.46,0.0003726,14]
[377591716,1754448762953,-2812.46,0.0003726,14]
[377591717,1754448762965,-284.99007025,0.0003726,14]
[377591718,1754448762975,-2179.89,0.0003726,14]
[377591719,1754448762984,-506.01,0.0003726,14]
[377591720,1754448762993,-4617.44,0.0003726,14]
[377591721,1754448763002,-400.0,0.0003726,14]
[377591722,1754448763011,-1734.55,0.0003726,14]
[377591723,1754448763021,-3963.12,0.0003726,14]
[377591724,1754448763030,-400.0,0.0003726,14]
[377591725,1754448763039,-400.0,0.0003726,14]
[377591726,1754448763049,-400.0,0.0003726,14]
[377591727,1754448763058,-2023.55,0.0003726,14]
[377591728,1754448763067,-534.1,0.0003726,14]
[377591729,1754448763076,-2294.7,0.0003726,14]
[377591730,1754448763086,-400.0,0.0003726,14]
[377591731,1754448763095,-400.0,0.0003726,14]
[377591732,1754448763104,-1545.14,0.0003726,14]
[377591733,1754448763113,-2092.3,0.0003726,14]
[377591734,1754448763123,-586.88,0.0003726,14]
[377591735,1754448763132,-523.66,0.0003726,14]
[377591736,1754448763143,-435.03,0.0003726,14]
[377591737,1754448763152,-1684.51,0.0003726,14]
[377591738,1754448763161,-933.36,0.0003726,14]
[377591739,1754448763170,-1056.52,0.0003726,14]
[377591740,1754448763179,-3017.99,0.0003726,14]
[377591741,1754448763188,-914.87,0.0003726,14]
[377591742,1754448763197,-611.39,0.0003726,14]
[377591743,1754448763207,-796.41,0.0003726,14]
[377591744,1754448763216,-833.08,0.0003726,14]
[377591745,1754448763226,-400.0,0.0003726,14]
[377591746,1754448763235,-1534.85,0.0003726,14]
[377591747,1754448763244,-400.0,0.0003726,14]
[377591748,1754448763253,-400.0,0.0003726,14]
[377591749,1754448763262,-1365.89,0.0003726,14]
[377591750,1754448763271,-2721.87,0.0003726,14]
[377591751,1754448763280,-1665.11,0.0003726,14]
[377591752,1754448763290,-1954.64,0.0003726,14]
[377591753,1754448763299,-3987.14,0.0003726,14]
[377591754,1754448763308,-5160.74,0.0003726,14]
[377591755,1754448763317,-2159.33,0.0003726,14]
[377591756,1754448763326,-400.0,0.0003726,14]
[377591757,1754448763335,-1952.38,0.0003726,14]
[377591758,1754448763345,-400.0,0.0003726,14]
[377591759,1754448763354,-1216.69,0.0003726,14]
[377591760,1754448763363,-1829.55,0.0003726,14]
[377591761,1754448763372,-2121.64,0.0003726,14]
[377591762,1754448763381,-400.0,0.0003726,14]
[377591763,1754448763390,-2523.11,0.0003726,14]
[377591764,1754448763399,-2978.88,0.0003726,14]
[377591765,1754448763409,-945.39,0.0003726,14]
[377591766,1754448763418,-2518.04,0.0003726,14]
[377591767,1754448763428,-859.36,0.0003726,2]
[377591768,1754448763437,-793.99,0.0003726,14]
[377591769,1754448763446,-400.0,0.0003726,14]
[377591770,1754448763456,-532.72,0.0003726,14]
[377591771,1754448763465,-1289.03,0.0003726,14]
[377591772,1754448763474,-400.0,0.0003726,14]
[377591773,1754448763483,-400.0,0.0003726,14]
[377591774,1754448763494,-601.08,0.0003726,14]
[377591775,1754448763503,-1073.41,0.0003726,14]
[377591776,1754448763512,-400.0,0.0003726,14]
[377591777,1754448763521,-412.5,0.0003726,14]
[377591778,1754448763531,-400.0,0.0003726,14]
[377591779,1754448763540,-400.0,0.0003726,14]
[377591780,1754448763551,-161.37337776,0.0003726,14]
[377591781,1754448763561,-400.0,0.0003726,14]
[377591782,1754448763570,-2539.32,0.0003726,14]
[377591783,1754448763580,-3437.75,0.0003726,14]
[377591784,1754448763591,-2655.03,0.0003726,14]
[377591785,1754448763601,-500.14,0.0003726,14]
[377591786,1754448763610,-1000.0,0.0003726,30]
[377591787,1754448763619,-400.0,0.0003726,14]
[377591788,1754448763629,-1245.68,0.0003726,14]
[377591789,1754448763639,-400.0,0.0003726,14]
[377591790,1754448763648,-828.5,0.0003726,14]
[377591791,1754448763656,-788.77,0.0003726,14]
[377591792,1754448763666,-3583.37,0.0003726,14]
[377591793,1754448763675,-4387.31,0.0003726,14]
[377591794,1754448763684,-2735.46,0.0003726,14]
[377591795,1754448763693,-1688.61,0.0003726,14]
[377591796,1754448763702,-3166.75,0.0003726,14]
[377591797,1754448763711,-3134.6,0.0003726,14]
[377591798,1754448763721,-400.0,0.0003726,14]
[377591799,1754448763730,-406.24,0.0003726,14]
[377591800,1754448763740,-400.0,0.0003726,14]
[377591801,1754448763749,-735.52,0.0003726,14]
[377591802,1754448763758,-400.0,0.0003726,14]
[377591803,1754448763767,-2255.41,0.0003726,14]
[377591804,1754448763776,-2297.5,0.0003726,14]
[377591805,1754448763786,-3216.0,0.0003726,14]
[377591806,1754448763795,-741.97,0.0003726,14]
[377591807,1754448763804,-654.96,0.0003726,14]
[377591808,1754448763814,-1206.25,0.0003726,14]
[377591809,1754448763823,-1381.51,0.0003726,14]
[377591810,1754448763832,-2750.06,0.0003726,14]
[377591811,1754448763842,-74281.09,0.0003726,14]
[377591812,1754448763852,-2322.06,0.0003726,14]
[377591813,1754448763861,-400.0,0.0003726,14]